bitfinex/quotes_BTCUSD_20240617
["timestamp","ask_amount","ask_price","bid_price","bid_amount"]
[1718612708949,0.9231526,66226.0,66225.0,0.009405]
[1718612709156,0.9301526,66226.0,66225.0,0.009405]
[1718612710598,0.94948494,66226.0,66225.0,0.009405]
[1718612710771,0.9301526,66226.0,66225.0,0.009405]
[1718612711741,0.94948494,66226.0,66225.0,0.009405]
[1718612711947,1.30198094,66226.0,66225.0,0.009405]
[1718612713195,1.30167677,66226.0,66225.0,0.009405]
[1718612714265,1.23184443,66226.0,66225.0,0.009405]
[1718612714478,1.28234443,66226.0,66225.0,0.009405]
[1718612715610,1.30167677,66226.0,66225.0,0.009405]
[1718612717922,1.28234443,66226.0,66225.0,0.009405]
[1718612718300,1.29234443,66226.0,66225.0,0.009405]
[1718612719328,1.09434043,66226.0,66225.0,0.009405]
[1718612719540,1.11153334,66226.0,66225.0,0.009405]
[1718612720413,1.12086568,66226.0,66225.0,0.009405]
[1718612722364,1.26316568,66226.0,66225.0,0.009405]
[1718612723540,1.26286748,66226.0,66225.0,0.009405]
[1718612725416,1.21236748,66226.0,66225.0,0.009405]
[1718612725588,1.26286748,66226.0,66225.0,0.009405]
[1718612726586,1.56486348,66226.0,66225.0,0.009405]
[1718612727193,1.55786348,66226.0,66225.0,0.009405]
[1718612727735,1.56586348,66226.0,66225.0,0.009405]
[1718612727961,1.55086348,66226.0,66225.0,0.009405]
[1718612728394,1.60211786,66226.0,66225.0,0.009405]
[1718612728596,1.61011786,66226.0,66225.0,0.009405]
[1718612728835,1.76220565,66226.0,66225.0,0.009405]
[1718612729034,1.70295127,66226.0,66225.0,0.009405]
[1718612729264,1.7542062,66226.0,66225.0,0.009405]
[1718612729429,1.7752062,66226.0,66225.0,0.009405]
[1718612729675,1.7247062,66226.0,66225.0,0.009405]
[1718612729879,1.7752062,66226.0,66225.0,0.009405]
[1718612730727,1.8752062,66226.0,66225.0,0.009405]
[1718612731126,1.92037125,66226.0,66225.0,0.009405]
[1718612731298,1.91037125,66226.0,66225.0,0.009405]
[1718612732283,2.02037125,66226.0,66225.0,0.009405]
[1718612732482,2.00937125,66226.0,66225.0,0.009405]
[1718612732688,2.02095026,66226.0,66225.0,0.009405]
[1718612732887,2.03395026,66226.0,66225.0,0.009405]
[1718612733089,2.02295026,66226.0,66225.0,0.009405]
[1718612733309,2.03695026,66226.0,66225.0,0.009405]
[1718612733511,2.37961805,66226.0,66225.0,0.009405]
[1718612733717,2.636449,66226.0,66225.0,0.009405]
[1718612734129,2.27959538,66226.0,66225.0,0.009405]
[1718612734364,2.35442935,66226.0,66225.0,0.009405]
[1718612734571,2.06661918,66226.0,66225.0,0.009405]
[1718612734744,2.09776186,66226.0,66225.0,0.009405]
[1718612735126,2.11176186,66226.0,66225.0,0.009405]
[1718612735570,2.09776186,66226.0,66225.0,0.009405]
[1718612735787,2.08376186,66226.0,66225.0,0.009405]
[1718612735980,2.11176186,66226.0,66225.0,0.009405]
[1718612736216,2.09776186,66226.0,66225.0,0.009405]
[1718612736620,2.11176186,66226.0,66225.0,0.009405]
[1718612737297,2.16661918,66226.0,66225.0,0.009405]
[1718612738168,2.16746918,66226.0,66225.0,0.009405]
[1718612738802,2.31955697,66226.0,66225.0,0.009405]
[1718612739626,2.16746918,66226.0,66225.0,0.009405]
[1718612740658,2.16703994,66226.0,66225.0,0.009405]
[1718612741225,2.8944352,66226.0,66225.0,0.009405]
[1718612741430,2.98476531,66226.0,66225.0,0.009405]
[1718612741632,2.8942116,66226.0,66225.0,0.009405]
[1718612741992,3.1550336,66226.0,66225.0,0.009405]
[1718612742366,3.1410336,66226.0,66225.0,0.009405]
[1718612742507,3.03229939,66226.0,66225.0,0.009405]
[1718612742707,3.01829939,66226.0,66225.0,0.009405]
[1718612743165,3.03229939,66226.0,66225.0,0.009405]
[1718612743624,3.05647253,66226.0,66225.0,0.009405]
[1718612743765,3.15469968,66226.0,66225.0,0.009405]
[1718612743940,3.15428108,66226.0,66225.0,0.009405]
[1718612745263,3.0700574,66226.0,66225.0,0.009405]
[1718612746562,3.0700574,66226.0,66225.0,0.009474]
[1718612748319,2.91796961,66226.0,66225.0,0.009474]
[1718612748499,3.00269798,66226.0,66225.0,0.009474]
[1718612748709,2.56547361,66226.0,66225.0,0.009474]
[1718612748916,2.59180047,66226.0,66225.0,0.009474]
[1718612750521,2.59160634,66226.0,66225.0,0.009474]
[1718612751375,2.13911034,66226.0,66225.0,0.009474]
[1718612751585,2.08844022,66226.0,66225.0,0.009474]
[1718612751799,1.97544034,66226.0,66225.0,0.009474]
[1718612752011,2.11633656,66226.0,66225.0,0.009474]
[1718612752227,2.05143656,66226.0,66225.0,0.009474]
[1718612752453,0.82505795,66226.0,66225.0,0.009474]
[1718612752625,1.12705395,66226.0,66225.0,0.009474]
[1718612752875,1.17225428,66226.0,66225.0,0.009474]
[1718612753081,0.71105795,66226.0,66225.0,0.009474]
[1718612753291,1.05825428,66226.0,66225.0,0.009474]
[1718612753748,0.59017049,66226.0,66225.0,0.009474]
[1718612753961,0.90616649,66226.0,66225.0,0.009474]
[1718612754178,0.92016649,66226.0,66225.0,0.009474]
[1718612754397,0.95779999,66226.0,66225.0,0.009474]
[1718612754629,0.97713233,66226.0,66225.0,0.009474]
[1718612754839,0.88129731,66226.0,66225.0,0.009474]
[1718612755051,0.89529731,66226.0,66225.0,0.008074]
[1718612756310,0.87596497,66226.0,66225.0,0.008074]
[1718612756458,0.83963303,66226.0,66225.0,0.008074]
[1718612758447,0.85896537,66226.0,66225.0,0.008074]
[1718612758648,0.8951951,66226.0,66225.0,0.008074]
[1718612759951,0.9456951,66226.0,66225.0,0.008074]
[1718612760150,0.92636276,66226.0,66225.0,0.008074]
[1718612760556,1.22835876,66226.0,66225.0,0.008074]
[1718612760799,1.3291911,66226.0,66225.0,0.008074]
[1718612761008,1.3910911,66226.0,66225.0,0.008074]
[1718612762920,1.3405911,66226.0,66225.0,0.008074]
[1718612763125,1.54318725,66226.0,66225.0,0.008074]
[1718612763510,1.86827504,66226.0,66225.0,0.008074]
[1718612763656,2.17027104,66226.0,66225.0,0.008074]
[1718612764177,2.07027104,66226.0,66225.0,0.008074]
[1718612764419,1.91818325,66226.0,66225.0,0.008074]
[1718612764539,1.56568725,66226.0,66225.0,0.008074]
[1718612764746,1.61618725,66226.0,66225.0,0.008074]
[1718612765302,1.91818325,66226.0,66225.0,0.008074]
[1718612765501,2.01818325,66226.0,66225.0,0.008074]
[1718612765704,2.11818325,66226.0,66225.0,0.008074]
[1718612766651,2.32027104,66226.0,66225.0,0.008074]
[1718612766857,2.62226704,66226.0,66225.0,0.008074]
[1718612767027,2.57226704,66226.0,66225.0,0.008074]
[1718612767346,2.2721769,66226.0,66225.0,0.008074]
[1718612767561,2.70496728,66226.0,66225.0,0.008074]
[1718612767804,2.75737314,66226.0,66225.0,0.008074]
[1718612768048,2.72937314,66226.0,66225.0,0.008074]
[1718612768295,2.75737314,66226.0,66225.0,0.008074]
[1718612769042,2.75741703,66226.0,66225.0,0.008074]
[1718612769271,2.70496728,66226.0,66225.0,0.008074]
[1718612770442,2.75741993,66226.0,66225.0,0.008074]
[1718612770675,2.89310624,66226.0,66225.0,0.008074]
[1718612771099,3.19510224,66226.0,66225.0,0.008074]
[1718612771352,3.05941593,66226.0,66225.0,0.008074]
[1718612771759,3.16641232,66226.0,66225.0,0.008074]
[1718612771968,3.21691232,66226.0,66225.0,0.008074]
[1718612772391,2.37272369,66226.0,66225.0,0.008074]
[1718612772609,3.16498689,66226.0,66225.0,0.008074]
[1718612772818,2.75837662,66226.0,66225.0,0.008074]
[1718612773029,2.70592397,66226.0,66225.0,0.008074]
[1718612773239,2.75841441,66226.0,66225.0,0.008074]
[1718612773445,2.60592397,66226.0,66225.0,0.008074]
[1718612774138,2.45383618,66226.0,66225.0,0.008074]
[1718612774352,1.84129029,66226.0,66225.0,0.008074]
[1718612774575,1.34537416,66226.0,66225.0,0.008074]
[1718612774789,1.39860274,66226.0,66225.0,0.008074]
[1718612775037,1.39860274,66226.0,66225.0,0.073674]
[1718612775267,1.01860468,66226.0,66225.0,0.073674]
[1718612775497,0.56570145,66226.0,66225.0,0.154174]
[1718612775735,0.49783123,66226.0,66225.0,0.154174]
[1718612775938,0.79982723,66226.0,66225.0,0.154174]
[1718612776361,0.78582723,66226.0,66225.0,0.154174]
[1718612776584,0.77182723,66226.0,66225.0,0.154174]
[1718612776791,0.78582723,66226.0,66225.0,0.154174]
[1718612777005,0.79982723,66226.0,66225.0,0.154174]
[1718612777204,0.78582723,66226.0,66225.0,0.154174]
[1718612777629,0.77758914,66226.0,66225.0,0.154174]
[1718612777855,0.81395285,66226.0,66225.0,0.154174]
[1718612778081,0.81395285,66226.0,66225.0,0.15484166]
[1718612778305,0.09640662,66226.0,66225.0,0.17314403]
[1718612778521,0.21104091,66226.0,66225.0,0.17314403]
[1718612778950,0.51303691,66226.0,66225.0,0.17314403]
[1718612780676,0.51303691,66226.0,66225.0,0.15484166]
[1718612781284,0.06004291,66226.0,66225.0,0.15484166]
[1718612781458,0.21104091,66226.0,66225.0,0.15484166]
[1718612784216,0.21057411,66226.0,66225.0,0.15484166]
[1718612785240,0.05957611,66226.0,66225.0,0.45684166]
[1718612785441,0.05957611,66226.0,66225.0,0.99559583]
[1718612785717,0.04285,66226.0,66225.0,1.01559583]
[1718612786133,0.04285,66226.0,66225.0,1.14089783]
[1718612786364,0.04285,66226.0,66225.0,1.01559583]
[1718612788051,0.04285,66226.0,66225.0,0.99559583]
[1718612789361,0.04285,66226.0,66225.0,1.04609583]
[1718612789530,0.04285,66226.0,66225.0,0.69359583]
[1718612789765,0.04285,66226.0,66225.0,0.74409583]
[1718612793603,0.04285,66226.0,66225.0,0.76409583]
[1718612794038,0.04285,66226.0,66225.0,1.06609583]
[1718612794255,0.04285,66226.0,66225.0,1.36809583]
[1718612794701,0.04285,66226.0,66225.0,0.99559583]
[1718612794905,0.04285,66226.0,66225.0,1.04609583]
[1718612797404,0.193848,66226.0,66225.0,0.24059583]
[1718612797666,0.20813754,66226.0,66225.0,0.15484166]
[1718612797949,0.51013354,66226.0,66225.0,0.15484166]
[1718612798602,0.05713954,66226.0,66225.0,0.15484166]
[1718612798731,0.51013354,66226.0,66225.0,0.008074]
[1718612798940,0.20813754,66226.0,66225.0,0.00874166]
[1718612799604,0.51013354,66226.0,66225.0,0.00874166]
[1718612800199,0.20813754,66226.0,66225.0,0.02709403]
[1718612800557,0.05713954,66226.0,66225.0,0.02709403]
[1718612800707,0.20813754,66226.0,66225.0,0.02709403]
[1718612801515,0.05713954,66226.0,66225.0,0.32909403]
[1718612801693,0.05713954,66226.0,66225.0,0.48009403]
[1718612802099,0.04285,66226.0,66225.0,0.48009403]
[1718612802301,0.04285,66226.0,66225.0,0.78209403]
[1718612802490,0.04285,66226.0,66225.0,0.99319403]
[1718612803348,0.04285,66226.0,66225.0,0.67119403]
[1718612804304,0.04285,66226.0,66225.0,0.69119403]
[1718612804929,0.04285,66226.0,66225.0,0.99319403]
[1718612805126,0.04285,66226.0,66225.0,1.29519403]
[1718612805332,0.04285,66226.0,66225.0,1.57258811]
[1718612805549,0.04285,66226.0,66225.0,1.27058811]
[1718612806867,0.04285,66226.0,66225.0,0.59608811]
[1718612807079,0.193848,66226.0,66225.0,0.00874166]
[1718612807227,0.04285,66226.0,66225.0,0.00874166]
[1718612807425,0.01514168,66226.0,66225.0,0.00874166]
[1718612807646,0.01514168,66226.0,66225.0,0.09064166]
[1718612807841,0.03114168,66226.0,66225.0,0.09064166]
[1718612808203,0.03114168,66226.0,66225.0,0.15487643]
[1718612808412,0.02414168,66226.0,66225.0,0.15487643]
[1718612808618,0.02414168,66226.0,66225.0,0.00874166]
[1718612808619,0.17613968,66226.0,66225.0,0.00874166]
[1718612808823,0.47813568,66226.0,66225.0,0.00874166]
[1718612809465,0.02514168,66226.0,66225.0,0.00874166]
[1718612809647,0.01085,66226.0,66225.0,0.07314166]
[1718612809857,0.01085,66226.0,66225.0,0.14155613]
[1718612809978,0.01085,66226.0,66225.0,0.26686517]
[1718612810176,0.01085,66226.0,66225.0,0.26686519]
[1718612810633,0.01274503,66226.0,66225.0,0.26686519]
[1718612810811,0.01974503,66226.0,66225.0,0.26686519]
[1718612811084,0.01974503,66226.0,66225.0,0.14155613]
[1718612811264,0.01574503,66226.0,66225.0,0.14155613]
[1718612811573,0.01274503,66226.0,66225.0,0.2668665]
[1718612811776,0.01374503,66226.0,66225.0,0.2668665]
[1718612811972,0.16474303,66226.0,66225.0,0.07715613]
[1718612812203,0.16474303,66226.0,66225.0,0.00874166]
[1718612813676,0.46673903,66226.0,66225.0,0.00874166]
[1718612815459,0.90953503,66226.0,66225.0,0.008074]
[1718612815668,1.21153103,66226.0,66225.0,0.008074]
[1718612815842,1.26142461,66226.0,66225.0,0.008074]
[1718612816879,1.26042461,66226.0,66225.0,0.008074]
[1718612817290,1.26842461,66226.0,66225.0,0.008074]
[1718612817410,1.27642461,66226.0,66225.0,0.008074]
[1718612819319,1.29575695,66226.0,66225.0,0.008074]
[1718612819529,1.27642461,66226.0,66225.0,0.008074]
[1718612819728,1.59775295,66226.0,66225.0,0.008074]
[1718612820095,1.74984074,66226.0,66225.0,0.008074]
[1718612820521,1.73384074,66226.0,66225.0,0.008074]
[1718612821146,1.76184074,66226.0,66225.0,0.008074]
[1718612821484,1.73384074,66226.0,66225.0,0.008074]
[1718612821690,1.78592403,66226.0,66225.0,0.008074]
[1718612822026,1.79992403,66226.0,66225.0,0.008074]
[1718612822931,1.81392403,66226.0,66225.0,0.008074]
[1718612823144,1.76342403,66226.0,66225.0,0.008074]
[1718612823500,1.81392403,66226.0,66225.0,0.008074]
[1718612826042,2.41800782,66226.0,66225.0,0.008074]
[1718612826250,1.96392403,66226.0,66225.0,0.008074]
[1718612826472,1.98692403,66226.0,66225.0,0.008074]
[1718612827942,2.08692403,66226.0,66225.0,0.008074]
[1718612828158,1.98692403,66226.0,66225.0,0.008074]
[1718612829748,2.13901182,66226.0,66225.0,0.008074]
[1718612830079,1.98692403,66226.0,66225.0,0.008074]
[1718612830416,1.93642403,66226.0,66225.0,0.008074]
[1718612830629,1.98692403,66226.0,66225.0,0.008074]
[1718612832757,2.08692403,66226.0,66225.0,0.008074]
[1718612833493,1.98426708,66226.0,66225.0,0.008074]
[1718612833891,1.98426716,66226.0,66225.0,0.008074]
[1718612835217,1.93376716,66226.0,66225.0,0.008074]
[1718612835448,1.98426716,66226.0,66225.0,0.008074]
[1718612835888,1.98438358,66226.0,66225.0,0.008074]
[1718612836636,2.08407984,66226.0,66225.0,0.008074]
[1718612836908,1.98407984,66226.0,66225.0,0.008074]
[1718612837536,2.02920769,66226.0,66225.0,0.008074]
[1718612837769,2.12920769,66226.0,66225.0,0.008074]
[1718612837984,2.13005769,66226.0,66225.0,0.008074]
[1718612838200,2.28214548,66226.0,66225.0,0.008074]
[1718612838412,2.304717,66226.0,66225.0,0.008074]
[1718612839250,2.32835192,66226.0,66225.0,0.008074]
[1718612839474,2.63034792,66226.0,66225.0,0.008074]
[1718612840733,2.53034792,66226.0,66225.0,0.008074]
[1718612841108,2.76034792,66226.0,66225.0,0.008074]
[1718612841325,3.32938197,66226.0,66225.0,0.008074]
[1718612842279,3.30138197,66226.0,66225.0,0.008074]
[1718612842505,3.31538197,66226.0,66225.0,0.008074]
[1718612842723,3.32938197,66226.0,66225.0,0.008074]
[1718612843117,3.31538197,66226.0,66225.0,0.008074]
[1718612843498,3.32938197,66226.0,66225.0,0.008074]
[1718612844535,3.42005197,66226.0,66225.0,0.008074]
[1718612847822,2.81546818,66226.0,66225.0,0.008074]
[1718612848031,2.96596818,66226.0,66225.0,0.008074]
[1718612848251,3.0562061,66226.0,66225.0,0.008074]
[1718612848670,3.14012555,66226.0,66225.0,0.008074]
[1718612848927,3.1675445,66226.0,66225.0,0.008074]
[1718612849377,3.08362505,66226.0,66225.0,0.008074]
[1718612849659,3.23571284,66226.0,66225.0,0.008074]
[1718612850120,2.83662415,66226.0,66225.0,0.008074]
[1718612850561,2.77704346,66226.0,66225.0,0.008074]
[1718612851024,2.15437072,66226.0,66225.0,0.008074]
[1718612851271,1.84596276,66226.0,66225.0,0.008074]
[1718612851493,1.913673,66226.0,66225.0,0.008074]
[1718612851730,1.853173,66226.0,66225.0,0.008074]
[1718612851961,1.17547504,66226.0,66225.0,0.008074]
[1718612852187,1.22597504,66226.0,66225.0,0.008074]
[1718612852413,1.12603184,66226.0,66225.0,0.008074]
[1718612852643,1.16253184,66226.0,66225.0,0.008074]
[1718612853105,1.17653184,66226.0,66225.0,0.008074]
[1718612853333,0.87453584,66226.0,66225.0,0.008074]
[1718612853553,1.16253184,66226.0,66225.0,0.008074]
[1718612854009,1.22167246,66226.0,66225.0,0.008074]
[1718612854469,1.52366846,66226.0,66225.0,0.008074]
[1718612854915,1.50966846,66226.0,66225.0,0.008074]
[1718612855372,1.50433612,66226.0,66225.0,0.008074]
[1718612855603,1.4591955,66226.0,66225.0,0.008074]
[1718612856540,1.52690574,66226.0,66225.0,0.008074]
[1718612858004,1.54623808,66226.0,66225.0,0.008074]
[1718612858213,1.47852784,66226.0,66225.0,0.008074]
[1718612858428,1.90351018,66226.0,66225.0,0.008074]
[1718612858661,1.98514116,66226.0,66225.0,0.008074]
[1718612859494,2.08402271,66226.0,66225.0,0.008074]
[1718612859903,2.09802271,66226.0,66225.0,0.008074]
[1718612860283,1.98514116,66226.0,66225.0,0.00800234]
[1718612861071,1.9850954,66226.0,66225.0,0.00800234]
[1718612861427,1.9570954,66226.0,66225.0,0.00800234]
[1718612861625,1.9850954,66226.0,66225.0,0.00800234]
[1718612863634,2.13718319,66226.0,66225.0,0.00800234]
[1718612864074,2.43917919,66226.0,66225.0,0.00800234]
[1718612865633,2.53917919,66226.0,66225.0,0.00800234]
[1718612865845,2.67463705,66226.0,66225.0,0.00800234]
[1718612866088,2.53917919,66226.0,66225.0,0.00800234]
[1718612866294,2.57463705,66226.0,66225.0,0.00800234]
[1718612866730,2.43917919,66226.0,66225.0,0.00800234]
[1718612867289,2.57463705,66226.0,66225.0,0.00800234]
[1718612867504,2.67463705,66226.0,66225.0,0.00800234]
[1718612867709,2.72463705,66226.0,66225.0,0.00800234]
[1718612867912,2.81530705,66226.0,66225.0,0.00800234]
[1718612869571,3.11730305,66226.0,66225.0,0.00800234]
[1718612870655,2.81559004,66226.0,66225.0,0.00800234]
[1718612870878,2.7155905,66226.0,66225.0,0.00800234]
[1718612871373,2.76791594,66226.0,66225.0,0.00800234]
[1718612871594,2.73991594,66226.0,66225.0,0.00800234]
[1718612871820,2.76791594,66226.0,66225.0,0.00800234]
[1718612872253,2.75392529,66226.0,66225.0,0.00800234]
[1718612872733,2.76792529,66226.0,66225.0,0.00800234]
[1718612873851,2.86792529,66226.0,66225.0,0.00800234]
[1718612874974,2.91792529,66226.0,66225.0,0.00800234]
[1718612875189,3.108235,66226.0,66225.0,0.00800234]
[1718612875394,3.56968942,66226.0,66225.0,0.00800234]
[1718612875812,3.26769342,66226.0,66225.0,0.00800234]
[1718612876025,3.30384741,66226.0,66225.0,0.00800234]
[1718612876444,3.60584341,66226.0,66225.0,0.00800234]
[1718612877308,3.60584341,66226.0,66221.0,0.00149435]
[1718612877309,1.97107934,66222.0,66221.0,0.00149435]
[1718612877517,0.47244134,66209.0,66206.0,0.08]
[1718612877757,1.64893213,66209.0,66206.0,0.08]
[1718612877956,1.70919929,66209.0,66206.0,0.08]
[1718612878478,1.82234684,66209.0,66206.0,0.08]
[1718612878695,2.07504452,66209.0,66206.0,0.08]
[1718612878913,2.13272636,66209.0,66206.0,0.08]
[1718612879342,2.14172636,66209.0,66206.0,0.08]
[1718612879584,2.03354452,66209.0,66206.0,0.08]
[1718612879793,2.02871883,66209.0,66206.0,0.08]
[1718612879958,2.14186638,66209.0,66206.0,0.08]
[1718612880178,2.02871883,66209.0,66206.0,0.08]
[1718612880532,2.14186638,66209.0,66206.0,0.08]
[1718612880736,2.02871883,66209.0,66206.0,0.08]
[1718612880940,2.00156484,66209.0,66206.0,0.08]
[1718612881147,2.03791741,66209.0,66206.0,0.08]
[1718612881652,2.19512833,66209.0,66204.0,0.1474]
[1718612881859,2.28352821,66209.0,66201.0,0.00085]
[1718612882256,2.31987968,66209.0,66201.0,0.00085]
[1718612882466,2.27581631,66209.0,66201.0,0.00085]
[1718612884420,2.38887729,66209.0,66201.0,0.00085]
[1718612884656,2.33837729,66209.0,66201.0,0.00085]
[1718612884865,2.29881631,66209.0,66201.0,0.00085]
[1718612885063,2.41188106,66209.0,66201.0,0.00085]
[1718612885238,2.41188531,66209.0,66201.0,0.00085]
[1718612886481,2.4509041,66209.0,66201.0,0.00085]
[1718612886693,2.5639731,66209.0,66201.0,0.00085]
[1718612887367,2.5509041,66209.0,66201.0,0.00085]
[1718612887792,2.29881631,66209.0,66201.0,0.00085]
[1718612888409,2.40755344,66209.0,66201.0,0.00085]
[1718612890489,2.35705344,66209.0,66201.0,0.00085]
[1718612890631,2.40755344,66209.0,66201.0,0.00085]
[1718612890837,2.31714151,66209.0,66201.0,0.00085]
[1718612892438,1.98296541,66209.0,66201.0,0.00085]
[1718612893485,2.05074113,66209.0,66201.0,0.00085]
[1718612893761,2.05073875,66209.0,66201.0,0.00085]
[1718612894567,2.06846895,66209.0,66201.0,0.00085]
[1718612894775,1.93733875,66209.0,66201.0,0.00085]
[1718612894937,1.91283875,66209.0,66205.0,0.1454]
[1718612895397,1.91295841,66209.0,66205.0,0.1454]
[1718612895567,1.77535035,66209.0,66205.0,0.1454]
[1718612895876,1.50077735,66209.0,66208.0,0.155194]
[1718612896649,1.14015212,66209.0,66208.0,0.155194]
[1718612896865,0.21517735,66209.0,66208.0,0.15586166]
[1718612896999,0.48087616,66209.0,66208.0,0.15586166]
[1718612897403,0.02776716,66209.0,66208.0,0.15586166]
[1718612897757,0.02776716,66209.0,66208.0,0.18655253]
[1718612898692,0.48087616,66209.0,66208.0,0.18655253]
[1718612899284,0.48087616,66209.0,66208.0,0.15586166]
[1718612899915,0.48087616,66209.0,66208.0,0.155194]
[1718612900371,0.78294916,66209.0,66208.0,0.15586166]
[1718612900585,0.48087616,66209.0,66208.0,0.15586166]
[1718612901356,0.78294916,66209.0,66208.0,0.15586166]
[1718612903237,0.48087616,66209.0,66208.0,0.15586166]
[1718612903433,0.78294916,66209.0,66208.0,0.15586166]
[1718612904509,0.48087616,66209.0,66208.0,0.155194]
[1718612904664,0.48087616,66209.0,66208.0,0.15586166]
[1718612908153,0.78294916,66209.0,66208.0,0.155194]
[1718612908331,0.78294916,66209.0,66208.0,0.15586166]
[1718612908539,0.78294916,66209.0,66208.0,0.155194]
[1718612909992,1.2927946,66209.0,66208.0,0.009394]
[1718612910199,1.27346226,66209.0,66208.0,0.009394]
[1718612912457,1.27348913,66209.0,66208.0,0.009394]
[1718612913893,1.29282147,66209.0,66208.0,0.009394]
[1718612914099,1.35628913,66209.0,66208.0,0.009394]
[1718612917333,1.42971259,66209.0,66208.0,0.009394]
[1718612917749,1.41038025,66209.0,66208.0,0.009394]
[1718612918820,1.41051306,66209.0,66208.0,0.009394]
[1718612919397,1.45570464,66209.0,66208.0,0.009394]
[1718612919662,1.88400619,66209.0,66208.0,0.009394]
[1718612919868,2.01389357,66209.0,66208.0,0.009394]
[1718612920078,2.37186163,66209.0,66208.0,0.009394]
[1718612920285,2.47186163,66209.0,66208.0,0.009394]
[1718612920720,2.07930273,66209.0,66208.0,0.009394]
[1718612921124,2.38137573,66209.0,66208.0,0.009394]
[1718612921346,2.4949294,66209.0,66208.0,0.009394]
[1718612924093,2.34284161,66209.0,66208.0,0.009394]
[1718612926520,2.32973424,66209.0,66208.0,0.009394]
[1718612926945,2.22973424,66209.0,66208.0,0.009394]
[1718612928041,2.22073424,66209.0,66208.0,0.009394]
[1718612928277,1.82615938,66209.0,66208.0,0.009394]
[1718612928534,2.38712838,66209.0,66208.0,0.009394]
[1718612929041,2.43712838,66209.0,66208.0,0.009394]
[1718612929315,2.45112838,66209.0,66208.0,0.009394]
[1718612929560,2.46512838,66209.0,66208.0,0.009394]
[1718612930020,2.56512838,66209.0,66208.0,0.009394]
[1718612930223,2.86720138,66209.0,66208.0,0.009394]
[1718612930427,2.85320138,66209.0,66208.0,0.009394]
[1718612930631,2.95594637,66209.0,66208.0,0.009394]
[1718612930858,2.96994637,66209.0,66208.0,0.009394]
[1718612931114,2.95594637,66209.0,66208.0,0.009394]
[1718612931345,2.95627885,66209.0,66208.0,0.009394]
[1718612931629,2.97027885,66209.0,66208.0,0.009394]
[1718612931869,2.95627885,66209.0,66208.0,0.009394]
[1718612932055,2.94227885,66209.0,66208.0,0.009394]
[1718612932362,2.95627885,66209.0,66208.0,0.009394]
[1718612932830,2.94227885,66209.0,66208.0,0.009394]
[1718612933067,2.95627885,66209.0,66208.0,0.009394]
[1718612933304,2.9714167,66209.0,66208.0,0.009394]
[1718612933538,2.9574167,66209.0,66208.0,0.009394]
[1718612934003,2.9714167,66209.0,66208.0,0.009394]
[1718612934476,2.9574167,66209.0,66208.0,0.009394]
[1718612934765,2.9714167,66209.0,66208.0,0.009394]
[1718612935463,2.6693437,66209.0,66208.0,0.009394]
[1718612936116,2.46775591,66209.0,66208.0,0.009394]
[1718612936317,2.41492556,66209.0,66208.0,0.009394]
[1718612938732,2.5279925,66209.0,66208.0,0.009394]
[1718612938901,2.41492556,66209.0,66208.0,0.009394]
[1718612940096,2.41490436,66209.0,66208.0,0.009394]
[1718612941777,2.37824142,66209.0,66208.0,0.009394]
[1718612941983,2.41486856,66209.0,66208.0,0.009394]
[1718612942389,2.37824142,66209.0,66208.0,0.009394]
[1718612942934,2.43008965,66209.0,66208.0,0.009394]
[1718612943383,2.09527363,66209.0,66208.0,0.009394]
[1718612943532,2.24736142,66209.0,66208.0,0.009394]
[1718612945744,2.27100239,66209.0,66208.0,0.009394]
[1718612946264,2.46850212,66209.0,66208.0,0.009394]
[1718612947383,2.86124512,66209.0,66208.0,0.009394]
[1718612948238,2.55917212,66209.0,66208.0,0.009394]
[1718612948446,2.65245684,66209.0,66208.0,0.009394]
[1718612948883,2.95452984,66209.0,66208.0,0.009394]
[1718612949975,2.94052984,66209.0,66208.0,0.009394]
[1718612950358,2.95452984,66209.0,66208.0,0.009394]
[1718612950583,2.97871591,66209.0,66208.0,0.009394]
[1718612950752,2.95071591,66209.0,66208.0,0.009394]
[1718612950953,2.64864291,66209.0,66208.0,0.009394]
[1718612951182,2.29262278,66209.0,66208.0,0.009394]
[1718612951389,1.65480899,66209.0,66208.0,0.009394]
[1718612951613,1.63130899,66209.0,66208.0,0.153794]
[1718612951986,1.68180899,66209.0,66208.0,0.153794]
[1718612952395,1.32923599,66209.0,66208.0,0.009394]
[1718612952588,1.27923599,66209.0,66208.0,0.089994]
[1718612952789,1.63180899,66209.0,66208.0,0.089994]
[1718612953061,1.32923599,66209.0,66208.0,0.089994]
[1718612953244,1.68180899,66209.0,66208.0,0.089994]
[1718612953443,1.37973599,66209.0,66208.0,0.089994]
[1718612953670,1.68180899,66209.0,66208.0,0.089994]
[1718612954766,1.70114133,66209.0,66208.0,0.089994]
[1718612955316,1.70083757,66209.0,66208.0,0.089994]
[1718612956108,1.68150523,66209.0,66208.0,0.089994]
[1718612956305,1.70083757,66209.0,66208.0,0.089994]
[1718612956507,1.58777923,66209.0,66208.0,0.009394]
[1718612956981,1.66557923,66209.0,66208.0,0.009394]
[1718612957159,2.01765223,66209.0,66208.0,0.009394]
[1718612957393,2.04065223,66209.0,66208.0,0.009394]
[1718612958470,2.04060064,66209.0,66208.0,0.009394]
[1718612959094,2.0212683,66209.0,66208.0,0.009394]
[1718612959568,2.04060064,66209.0,66208.0,0.009394]
[1718612960419,2.04276097,66209.0,66208.0,0.009394]
[1718612961100,2.37757272,66209.0,66208.0,0.009394]
[1718612961707,2.37760947,66209.0,66208.0,0.009394]
[1718612962652,2.32760947,66209.0,66208.0,0.009394]
[1718612962872,2.37760947,66209.0,66208.0,0.009394]
[1718612963094,2.59109726,66209.0,66208.0,0.009394]
[1718612963316,2.69109726,66209.0,66208.0,0.009394]
[1718612963535,2.81060885,66209.0,66208.0,0.009394]
[1718612963792,3.25761998,66209.0,66208.0,0.009394]
[1718612964246,3.15761998,66209.0,66208.0,0.009394]
[1718612964464,3.25761998,66209.0,66208.0,0.009394]
[1718612964929,3.10553219,66209.0,66208.0,0.009394]
[1718612965634,3.10477683,66209.0,66208.0,0.009394]
[1718612966089,3.00477683,66209.0,66208.0,0.009394]
[1718612966335,3.10477683,66209.0,66208.0,0.009394]
[1718612966988,2.18558075,66209.0,66208.0,0.009394]
[1718612967174,2.4619706,66209.0,66208.0,0.009394]
[1718612967407,2.4114706,66209.0,66208.0,0.009394]
[1718612967652,2.4619706,66209.0,66208.0,0.009394]
[1718612968782,2.68890038,66209.0,66208.0,0.009394]